bitfinex/quotes_SOLUSD_20250317
["timestamp","ask_amount","ask_price","bid_price","bid_amount"]
[1742189721748,0.03,128.68,128.67,37.32288658]
[1742189721974,0.03,128.69,128.68,18.13541458]
[1742189722880,0.03,128.69,128.68,25.90661458]
[1742189723265,0.03,128.69,128.68,337.90661458]
[1742189723452,0.03,128.69,128.68,418.70661458]
[1742189723861,0.03,128.69,128.68,480.1090449]
[1742189724075,0.03,128.69,128.68,437.64058658]
[1742189726151,0.03,128.69,128.68,125.64058658]
[1742189732184,0.03,128.69,128.68,437.64058658]
[1742189732388,0.03,128.75,128.69,18.933972]
[1742189732584,0.03,128.75,128.73,10.61711458]
[1742189732763,0.03,128.75,128.74,6.62]
[1742189739098,30.64711458,128.75,128.74,6.62]
[1742189739284,20.03,128.75,128.74,6.62]
[1742189739594,20.03,128.75,128.71,17.23711458]
[1742189740393,27.7975,128.75,128.71,17.23711458]
[1742189740892,27.7975,128.75,128.72,10.61711458]
[1742189741080,27.7975,128.75,128.71,17.23711458]
[1742189743088,27.7975,128.75,128.71,10.61711458]
[1742189743295,27.7975,128.75,128.71,17.23711458]
[1742189751300,7.7975,128.75,128.71,17.23711458]
[1742189752000,7.7975,128.75,128.66,80.863]
[1742189752001,10.61711458,128.73,128.66,80.863]
[1742189752192,10.61711458,128.72,128.67,6.62]
[1742189752595,30.61711458,128.71,128.67,6.62]
[1742189752984,30.61711458,128.71,128.66,80.863]
[1742189752985,10.61711458,128.7,128.66,80.863]
[1742189753300,10.61711458,128.69,128.66,6.683]
[1742189753807,10.61711458,128.7,128.66,6.683]
[1742189753997,10.61711458,128.69,128.66,6.683]
[1742189754300,18.38711458,128.7,128.66,6.683]
[1742189754508,7.77,128.7,128.66,17.30011458]
[1742189755504,18.38711458,128.7,128.66,6.683]
[1742189756007,18.38711458,128.7,128.66,17.30011458]
[1742189756406,7.77,128.7,128.66,17.30011458]
[1742189756785,18.38711458,128.7,128.66,6.683]
[1742189757408,7.77,128.7,128.66,17.30011458]
[1742189759307,10.61711458,128.69,128.66,6.683]
[1742189759505,27.195,128.7,128.66,6.683]
[1742189759506,10.61711458,128.68,128.66,6.683]
[1742189759685,10.61711458,128.69,128.66,6.683]
[1742189760804,37.81211458,128.7,128.66,6.683]
[1742189761196,18.38711458,128.7,128.66,6.683]
[1742189762791,18.38821458,128.69,128.66,6.683]
[1742189763606,18.38821458,128.69,128.66,0.063]
[1742189763786,10.61711458,128.68,128.66,0.063]
[1742189764914,7.7718,128.67,128.66,0.063]
[1742189765308,18.38891458,128.67,128.66,0.063]
[1742189771994,18.53107615,128.67,128.66,0.063]
[1742189772214,18.67323772,128.67,128.66,0.063]
[1742189773099,18.53107615,128.67,128.66,0.063]
[1742189773300,18.38891458,128.67,128.66,0.063]
[1742189775606,18.67323772,128.67,128.66,0.063]
[1742189775807,10.61711458,128.64,128.62,0.063]
[1742189776026,10.61711458,128.63,128.62,0.063]
[1742189777027,30.61711458,128.64,128.62,0.063]
[1742189777215,20.0,128.63,128.62,0.063]
[1742189777723,30.61711458,128.63,128.62,0.063]
[1742189779428,38.39131458,128.63,128.62,0.063]
[1742189782215,38.39131458,128.63,128.62,0.063]
[1742189783329,0.14216157,128.62,128.59,0.063]
[1742189783531,10.61711458,128.6,128.59,0.063]
[1742189784031,10.61711458,128.61,128.59,0.063]
[1742189785145,18.39311458,128.6,128.59,0.063]
[1742189786816,18.53527615,128.6,128.59,0.063]
[1742189787012,20.0,128.57,128.56,0.063]
[1742189787218,30.90143772,128.57,128.56,0.063]
[1742189788015,30.90143772,128.57,128.55,0.063]
[1742189788231,30.75927615,128.56,128.55,0.063]
[1742189788417,30.75927615,128.56,128.54,0.063]
[1742189788619,30.75927615,128.55,128.54,0.063]
[1742189789746,38.53827615,128.55,128.54,0.063]
[1742189794837,7.7782,128.57,128.54,0.063]
[1742189795146,20.0,128.55,128.54,0.063]
[1742189795745,0.14216157,128.59,128.54,0.063]
[1742189795924,10.61711458,128.58,128.54,0.063]
[1742189797544,18.39461458,128.58,128.54,0.063]
[1742189797848,18.39461458,128.58,128.54,322.68011458]
[1742189798039,18.39461458,128.58,128.54,312.063]
[1742189800728,18.39461458,128.58,128.54,0.063]
[1742189803750,10.61711458,128.57,128.54,312.063]
[1742189804450,10.61711458,128.57,128.54,0.063]
[1742189804827,7.7775,128.58,128.54,0.063]
[1742189805039,10.61711458,128.57,128.54,0.063]
[1742189805262,18.39461458,128.58,128.54,0.063]
[1742189808454,7.777,128.59,128.54,1.6061]
[1742189808643,18.39341458,128.6,128.55,10.61711458]
[1742189809144,10.61711458,128.59,128.54,12.22321458]
[1742189809656,18.39431458,128.58,128.54,1.6061]
[1742189810460,18.39431458,128.58,128.54,9.3856]
[1742189811158,18.39431458,128.58,128.54,1.6061]
[1742189812051,7.7772,128.58,128.54,12.22321458]
[1742189812262,18.39431458,128.58,128.54,12.22321458]
[1742189815439,18.39431458,128.58,128.54,20.00281458]
[1742189816761,18.39431458,128.58,128.54,12.22321458]
[1742189818440,18.39431458,128.58,128.54,1.6061]
[1742189820159,10.61711458,128.56,128.54,1.6061]
[1742189820337,10.61711458,128.56,128.54,0.063]
[1742189821070,7.7787,128.56,128.54,0.063]
[1742189821657,18.39521458,128.57,128.54,0.063]
[1742189823253,10.61711458,128.56,128.54,0.063]
[1742189824167,18.39611458,128.56,128.54,0.063]
[1742189824775,7.779,128.56,128.54,0.063]
[1742189826161,18.39611458,128.56,128.54,0.063]
[1742189826362,10.75927615,128.55,128.54,0.063]
[1742189827868,29.55108658,128.55,128.54,0.063]
[1742189828072,37.33008658,128.55,128.54,0.063]
[1742189829063,20.0,128.51,128.49,0.063]
[1742189829265,10.61711458,128.5,128.49,0.063]
[1742189830048,18.39921458,128.5,128.49,0.063]
[1742189830868,7.7821,128.5,128.49,0.063]
[1742189831050,38.39861458,128.51,128.49,0.063]
[1742189831771,0.14216157,128.53,128.49,0.063]
[1742189831772,20.0,128.53,128.5,6.62]
[1742189832546,10.61711458,128.55,128.5,25.01891458]
[1742189832749,10.64711458,128.56,128.51,10.61711458]
[1742189832946,10.61711458,128.55,128.5,25.01891458]
[1742189834054,10.64711458,128.56,128.51,12.16301458]
[1742189834272,10.64711458,128.56,128.51,19.94391458]
[1742189834466,10.61711458,128.55,128.51,9.3268]
[1742189834773,18.42561458,128.56,128.51,19.94391458]
[1742189834978,10.64711458,128.56,128.51,19.94391458]
[1742189835862,10.61711458,128.55,128.51,9.3268]
[1742189836655,10.64711458,128.56,128.51,19.94391458]
[1742189839667,18.42571458,128.56,128.51,19.94391458]
[1742189839861,18.42571458,128.56,128.51,9.3268]
[1742189840062,10.64711458,128.56,128.51,9.3268]
[1742189840267,10.64711458,128.56,128.51,19.94391458]
[1742189842161,10.64711458,128.56,128.51,9.3268]
[1742189842376,10.64711458,128.56,128.51,19.94391458]
[1742189844183,0.03,128.56,128.52,10.61711458]
[1742189844385,10.64711458,128.56,128.51,19.94391458]
[1742189845385,18.42561458,128.56,128.51,19.94391458]
[1742189845773,10.64711458,128.56,128.51,19.94391458]
[1742189845967,0.03,128.56,128.52,10.61711458]
[1742189846162,0.03,128.56,128.52,18.39761458]
[1742189846685,0.03,128.56,128.52,7.7805]
[1742189846686,10.64711458,128.56,128.52,7.7805]
[1742189847374,18.42561458,128.56,128.52,7.7805]
[1742189851298,10.61711458,128.55,128.52,7.7805]
[1742189851499,10.61711458,128.55,128.51,1.5459]
[1742189852092,20.0,128.55,128.51,19.94441458]
[1742189852303,30.61711458,128.55,128.51,1.5459]
[1742189853190,20.0,128.55,128.51,1.5459]
[1742189853374,7.7796,128.54,128.51,1.5459]
[1742189853988,38.39641458,128.55,128.51,1.5459]
[1742189854276,27.7793,128.55,128.51,1.5459]
[1742189854794,27.7793,128.55,128.51,12.16301458]
[1742189856295,27.7793,128.55,128.51,1.5459]
[1742189856494,27.7793,128.55,128.51,12.16301458]
[1742189858090,27.7793,128.55,128.51,1.5459]
[1742189858298,38.39641458,128.55,128.51,1.5459]
[1742189860199,27.7793,128.55,128.51,1.5459]
[1742189860404,7.8086,128.56,128.51,19.94441458]
[1742189860612,7.8086,128.56,128.52,10.61711458]
[1742189860996,7.8086,128.56,128.51,19.94441458]
[1742189863110,10.64711458,128.56,128.51,19.94441458]
[1742189863505,10.64711458,128.56,128.51,12.16301458]
[1742189864115,10.64711458,128.56,128.51,19.94441458]
[1742189865390,18.42601458,128.56,128.51,9.3273]
[1742189865592,18.42601458,128.56,128.51,19.94441458]
[1742189868012,18.42601458,128.56,128.51,12.16301458]
[1742189870108,10.61711458,128.55,128.51,1.5459]
[1742189871196,18.42601458,128.56,128.51,12.16301458]
[1742189872317,10.61711458,128.53,128.51,1.5459]
[1742189872519,10.61711458,128.54,128.51,1.5459]
[1742189873108,10.61711458,128.55,128.51,1.5459]
[1742189873312,10.61711458,128.55,128.52,6.62]
[1742189873999,18.42601458,128.56,128.52,6.62]
[1742189878309,20.0,128.54,128.52,6.62]
[1742189881996,7.8085,128.56,128.52,6.62]
[1742189882919,18.42561458,128.56,128.52,6.62]
[1742189884126,7.8085,128.56,128.52,6.62]
[1742189884424,18.42561458,128.56,128.52,6.62]
[1742189889327,20.0,128.55,128.52,6.62]
[1742189889517,0.03,128.56,128.52,6.62]
[1742189889717,10.64711458,128.56,128.52,6.62]
[1742189890631,7.779,128.55,128.52,6.62]
[1742189891927,18.42581458,128.56,128.52,14.4007]
[1742189892232,7.8084,128.56,128.52,14.4007]
[1742189893821,7.8084,128.56,128.52,25.01781458]
[1742189894223,7.8084,128.56,128.52,6.62]
[1742189894427,10.61711458,128.55,128.52,6.62]
[1742189894628,18.42551458,128.56,128.52,6.62]
[1742189895110,7.8084,128.56,128.52,6.62]
[1742189895439,18.42551458,128.56,128.52,6.62]
[1742189897433,0.03,128.56,128.52,14.4008]
[1742189897642,0.03,128.56,128.54,10.61711458]
[1742189897816,0.03,128.56,128.55,1.6098]
[1742189898416,0.03,128.56,128.55,12.22691458]
[1742189899140,0.03,128.56,128.55,1.6098]
[1742189899317,0.03,128.56,128.55,12.22691458]
[1742189899518,0.03,128.56,128.55,20.00591458]
[1742189902336,0.03,128.59,128.56,6.6586]
[1742189902657,0.03,128.59,128.57,17.23711458]
[1742189903924,0.03,128.59,128.57,6.62]
[1742189905356,0.03,128.59,128.58,10.61711458]
[1742189905722,0.03,128.59,128.58,18.39431458]
[1742189908549,0.03,128.59,128.57,95.1975]
[1742189908853,0.03,128.59,128.57,105.81461458]
[1742189911450,0.03,128.59,128.58,10.61711458]
[1742189912262,0.03,128.59,128.58,18.39431458]
[1742189915860,0.03,128.59,128.58,160.31242176]
[1742189916243,0.03,128.59,128.58,117.84396344]
[1742189918751,0.03,128.59,128.58,119.49296344]
[1742189921560,0.03,128.59,128.58,162.2457449]
[1742189927577,0.03,128.59,128.58,296.7457449]
[1742189928275,0.03,128.59,128.58,608.7457449]
[1742189928865,0.03,128.59,128.58,296.7457449]
[1742189936055,18.41911458,128.67,128.59,18.933972]
[1742189936257,18.41911458,128.67,128.62,10.61711458]
[1742189936465,18.41911458,128.67,128.63,6.62]
[1742189937079,7.802,128.67,128.63,6.62]
[1742189937254,18.41911458,128.67,128.63,6.62]
[1742189938372,18.41911458,128.67,128.63,14.3941]
[1742189939084,0.03,128.67,128.63,25.01121458]
[1742189940452,0.03,128.67,128.65,10.61711458]
[1742189940773,0.03,128.67,128.66,10.61711458]
[1742189941159,0.03,128.67,128.65,10.61711458]
[1742189942076,0.03,128.67,128.65,18.38961458]
[1742189943275,0.03,128.67,128.66,10.61711458]
[1742189945184,0.03,128.67,128.63,87.42]
[1742189945482,0.03,128.67,128.64,10.61711458]
[1742189946381,0.03,128.67,128.64,91.41711458]
[1742189947780,0.03,128.67,128.65,10.61711458]
[1742189947965,0.03,128.67,128.66,10.61711458]
[1742189948165,0.03,128.67,128.65,10.61711458]
[1742189949171,0.03,128.67,128.66,10.61711458]
[1742189949371,0.03,128.67,128.65,10.61711458]
[1742189949780,0.03,128.67,128.65,18.38991458]
[1742189949979,0.03,128.67,128.66,10.61711458]
[1742189951278,0.03,128.67,128.66,18.38951458]
[1742189952164,0.03,128.67,128.66,99.18951458]
[1742189953578,0.03,128.67,128.66,80.8]
[1742189954761,0.03,128.67,128.66,87.42]
[1742189955432,7.8018,128.67,128.66,87.42]
[1742189957492,0.03,128.67,128.66,87.42]
[1742189958167,0.03,128.67,128.66,6.62]
[1742189963987,10.64711458,128.67,128.66,6.62]
[1742189964186,0.03,128.67,128.66,6.62]
[1742189969396,0.03,128.67,128.64,80.8]
[1742189969601,10.64711458,128.67,128.65,6.62]
[1742189970498,7.7724,128.66,128.65,6.62]
[1742189971806,7.8018,128.67,128.65,6.62]
[1742189974411,10.64711458,128.67,128.65,6.62]
[1742189975610,7.7724,128.66,128.65,6.62]
[1742189981112,7.8024,128.66,128.65,6.62]
[1742189981613,18.41951458,128.66,128.61,80.8]
[1742189981826,10.61711458,128.64,128.61,80.8]
[1742189982009,10.61711458,128.63,128.61,87.42]
[1742189982204,10.61711458,128.63,128.61,6.62]
[1742189983108,7.7748,128.62,128.61,6.62]
[1742189984028,18.39191458,128.62,128.59,80.863]
[1742189984234,7.7748,128.62,128.6,6.62]
[1742189984411,18.39191458,128.62,128.6,6.62]
[1742189985124,18.39191458,128.62,128.59,80.863]
[1742189985329,10.61711458,128.61,128.59,87.483]
[1742189986332,7.776,128.6,128.59,87.483]
[1742189986533,7.776,128.6,128.59,6.683]
[1742189986830,18.39311458,128.6,128.59,6.683]
[1742189988306,7.776,128.6,128.59,6.683]
[1742189989031,10.61711458,128.62,128.59,6.683]
[1742189989333,10.61711458,128.63,128.59,6.683]
[1742189990331,18.39071458,128.64,128.59,25.07661458]
[1742189990515,7.7732,128.65,128.61,10.61711458]
[1742189990910,18.39031458,128.65,128.6,10.61711458]
[1742189991411,0.03,128.66,128.61,10.61711458]
[1742189991611,0.03,128.66,128.62,10.61711458]
[1742189991819,0.03,128.66,128.63,6.62]
[1742189992212,7.8024,128.66,128.63,6.62]
[1742189992420,10.61711458,128.65,128.63,6.62]
[1742189992619,7.7736,128.64,128.63,6.62]
[1742189993324,7.7732,128.65,128.63,6.62]
[1742189994130,7.8025,128.66,128.63,6.62]
[1742189994309,0.03,128.66,128.63,14.394]
[1742189994515,0.03,128.66,128.63,25.01111458]
[1742189996539,0.03,128.66,128.64,10.61711458]
[1742189996836,0.03,128.66,128.63,105.81111458]
[1742189997135,0.03,128.66,128.64,10.61711458]
[1742189997433,0.03,128.66,128.63,105.81111458]
[1742189997737,0.03,128.66,128.64,18.39071458]
[1742189997940,0.03,128.66,128.64,7.7736]
[1742189998236,0.03,128.66,128.63,105.81111458]
[1742189998818,0.03,128.66,128.65,10.61711458]
[1742189999238,0.03,128.66,128.64,12.25051458]
[1742189999738,0.03,128.66,128.65,18.39011458]
[1742190004421,0.03,128.66,128.65,118.12408658]
[1742190004822,0.03,128.66,128.65,124.67268658]
[1742190005625,0.0001,128.66,128.65,124.67268658]
[1742190005823,0.0001,128.66,128.65,125.83793076]
[1742190006255,0.03,128.67,128.66,18.64964886]
[1742190006436,0.03,128.67,128.66,37.03916344]
[1742190007255,0.03,128.69,128.68,29.26676344]
[1742190007452,0.03,128.69,128.68,116.68676344]
[1742190008326,0.03,128.69,128.68,126.31848658]
[1742190009527,0.03,128.71,128.7,0.28432314]
[1742190009731,0.03,128.71,128.7,53.36989604]
[1742190011432,0.03,128.71,128.7,295.0895449]
[1742190012155,0.03,128.72,128.71,99.41964886]
[1742190012359,0.03,128.72,128.71,244.53676344]
[1742190012859,0.03,128.72,128.71,556.82108658]
[1742190013443,0.03,128.75,128.72,18.933972]
[1742190013668,0.03,128.75,128.74,10.75927615]
[1742190014257,0.03,128.75,128.74,29.40892501]
[1742190016241,0.03,128.75,128.74,117.94642501]
[1742190018034,0.03,128.75,128.74,118.08858658]
[1742190018230,0.03,128.75,128.74,124.73588658]
[1742190018434,0.0001,128.75,128.74,439.56354741]
[1742190018649,0.0001,128.75,128.74,438.39908658]
[1742190019236,0.0001,128.75,128.74,126.39908658]
[1742190019656,0.03,128.76,128.75,88.67896157]
[1742190019853,0.03,128.76,128.75,233.79607615]
[1742190020661,0.03,128.76,128.75,252.44572501]
[1742190020842,0.03,128.76,128.75,252.58788658]
[1742190023162,0.03,128.76,128.75,226.02917615]
[1742190025268,0.03,128.76,128.75,233.79607615]
[1742190025647,0.03,128.76,128.75,99.29607615]
[1742190029747,0.03,128.76,128.75,105.89607615]
[1742190030501,0.03,128.76,128.75,124.68788658]
[1742190030674,0.03,128.78,128.77,29.40892501]
[1742190031672,0.03,128.78,128.77,29.55108658]
[1742190031973,0.03,128.78,128.77,37.31678658]
[1742190032360,0.03,128.78,128.77,349.31678658]
[1742190033272,0.03,128.78,128.77,10.61711458]
[1742190033578,0.03,128.78,128.76,99.12311458]
[1742190034568,0.03,128.78,128.77,18.52497615]
[1742190034788,0.03,128.78,128.77,37.31678658]
[1742190035073,0.03,128.78,128.77,18.52497615]
[1742190040255,0.03,128.78,128.77,99.26487615]
[1742190044565,0.03,128.78,128.77,91.35701458]
[1742190046063,0.03,128.78,128.77,80.7399]
[1742190046268,10.64711458,128.78,128.77,80.7399]
[1742190046476,18.41221458,128.78,128.77,80.7399]
[1742190048981,18.41221458,128.78,128.76,6.62]
[1742190050385,18.41221458,128.78,128.74,0.063]
[1742190050680,18.41221458,128.78,128.75,6.663]
[1742190053185,7.7951,128.78,128.75,6.663]
[1742190053783,0.03,128.78,128.75,25.04681458]
[1742190054179,0.03,128.78,128.76,6.62]
[1742190061983,10.61711458,128.77,128.75,0.063]
[1742190062169,30.61711458,128.76,128.75,0.063]
[1742190063683,38.38341458,128.76,128.75,0.063]
[1742190066475,27.7663,128.76,128.75,0.063]
[1742190066792,38.38341458,128.76,128.75,0.063]
[1742190068092,80.99403447,128.76,128.75,0.063]
[1742190069203,1.77656157,128.75,128.74,0.063]
[1742190069388,12.39367615,128.75,128.74,0.063]
[1742190070402,20.0,128.67,128.63,80.8029]
[1742190070696,10.61711458,128.64,128.63,80.8029]
[1742190071381,10.61711458,128.64,128.63,0.063]
[1742190072281,71.87738333,128.64,128.63,0.063]
[1742190072592,86.3177449,128.64,128.63,0.063]
[1742190072798,87.9521449,128.64,128.63,0.063]
[1742190074008,20.0,128.62,128.61,0.063]
[1742190074173,29.40892501,128.62,128.61,0.063]
[1742190074810,37.18372501,128.62,128.61,0.063]
[1742190074976,38.39191458,128.62,128.61,0.063]
[1742190075794,30.61711458,128.62,128.61,0.063]
[1742190076573,20.0,128.62,128.61,0.063]
[1742190076801,10.61711458,128.64,128.61,6.683]
[1742190077791,10.61711458,128.63,128.61,6.683]
[1742190078998,10.61711458,128.64,128.61,6.683]
[1742190079302,10.61711458,128.65,128.61,6.683]
[1742190079503,10.61711458,128.64,128.61,6.683]
[1742190079803,10.61711458,128.63,128.61,6.683]
[1742190083607,10.61711458,128.62,128.61,0.063]
[1742190084200,20.0,128.62,128.61,0.063]
[1742190086390,10.61711458,128.65,128.61,0.063]
[1742190089208,10.61711458,128.66,128.61,10.68011458]
[1742190089514,10.61711458,128.66,128.62,6.62]
[1742190090308,10.61711458,128.65,128.62,6.62]
[1742190091614,10.61711458,128.65,128.62,14.3947]
[1742190094313,10.61711458,128.66,128.62,14.3947]
[1742190096514,20.0,128.64,128.62,14.4577]
[1742190098517,20.0,128.64,128.62,6.683]
[1742190099424,20.0,128.64,128.62,14.4577]
[1742190100521,0.03,128.66,128.62,14.4577]
[1742190100704,0.03,128.66,128.62,25.07481458]
[1742190101529,0.03,128.66,128.63,10.61711458]
[1742190102225,0.03,128.66,128.64,7.7736]
[1742190105543,0.03,128.66,128.64,18.39071458]
[1742190105708,0.03,128.66,128.65,10.61711458]
[1742190107019,0.03,128.66,128.65,91.35701458]
[1742190107220,0.03,128.66,128.65,92.90201458]
[1742190107533,0.03,128.66,128.65,100.67501458]
[1742190113921,7.7675,128.74,128.66,6.2346]
[1742190114111,7.7675,128.74,128.7,10.61711458]
[1742190114311,7.7675,128.74,128.71,6.6]
[1742190114514,18.38431458,128.75,128.71,6.6]
[1742190115944,10.61711458,128.75,128.71,14.3693]
[1742190117642,18.38421458,128.75,128.71,6.6]
[1742190117934,10.61711458,128.74,128.71,6.6]
[1742190118127,10.61711458,128.75,128.71,14.369]
[1742190118718,18.38421458,128.75,128.71,6.6]
[1742190120737,18.41421458,128.75,128.71,6.6]
[1742190121031,10.61711458,128.74,128.71,6.6]
[1742190121238,18.41421458,128.75,128.71,6.6]
[1742190123230,10.61711458,128.73,128.71,6.6]
[1742190123429,30.61711458,128.72,128.66,87.0346]
[1742190123641,10.61711458,128.7,128.67,6.6]
[1742190124219,10.61711458,128.71,128.67,6.6]
[1742190124541,10.61711458,128.7,128.67,6.6]
[1742190124721,18.38651458,128.71,128.67,6.6]
[1742190125231,10.61711458,128.69,128.67,6.6]
[1742190125540,10.61711458,128.68,128.64,80.8]
[1742190125716,10.61711458,128.67,128.65,6.6]
[1742190126116,10.61711458,128.68,128.65,6.6]
[1742190126539,18.38831458,128.68,128.65,6.6]
[1742190127431,10.61711458,128.68,128.65,6.6]
[1742190127633,18.38791458,128.69,128.65,6.6]
[1742190128341,10.61711458,128.69,128.65,14.3729]
[1742190130444,18.38791458,128.69,128.65,14.3729]
[1742190131747,18.38791458,128.69,128.65,6.6]
[1742190131929,18.38791458,128.69,128.65,6.663]
[1742190131930,10.61711458,128.68,128.65,6.663]
[1742190133346,10.61711458,128.67,128.65,0.063]
[1742190133536,18.38951458,128.66,128.65,0.063]
[1742190134840,18.38911458,128.67,128.65,0.063]
[1742190135051,20.0,128.66,128.65,0.063]
[1742190135953,38.38951458,128.66,128.65,0.063]
[1742190138153,27.7724,128.66,128.65,0.063]
[1742190138450,38.38951458,128.66,128.65,0.063]
[1742190139955,18.38951458,128.66,128.65,0.063]
[1742190140154,38.38951458,128.66,128.65,0.063]
[1742190141936,27.7724,128.66,128.65,0.063]
[1742190142853,38.38951458,128.66,128.65,0.063]
[1742190143151,27.7724,128.66,128.65,0.063]
[1742190144454,20.03,128.66,128.65,0.063]
[1742190150855,27.8024,128.66,128.65,0.063]
[1742190151052,20.03,128.66,128.65,0.063]
[1742190151661,0.03,128.66,128.65,0.063]
[1742190151843,0.03,128.66,128.65,6.683]
[1742190152244,0.03,128.66,128.65,25.07311458]
[1742190152653,0.03,128.66,128.65,14.456]
[1742190153264,0.03,128.66,128.65,25.07311458]
[1742190154262,0.03,128.66,128.65,14.456]
[1742190154462,0.03,128.66,128.65,6.683]
[1742190157264,10.64711458,128.66,128.65,0.063]
[1742190157970,0.03,128.66,128.65,0.063]
[1742190162579,10.64711458,128.66,128.65,0.063]
[1742190163576,18.41951458,128.66,128.65,0.063]
[1742190164479,7.8024,128.66,128.65,0.063]
[1742190168480,18.41951458,128.66,128.65,0.063]
[1742190171374,0.03,128.66,128.65,0.063]
[1742190171762,20.03,128.66,128.65,0.063]
[1742190182682,38.41951458,128.66,128.65,0.063]
[1742190183595,57.21132501,128.66,128.65,0.063]
[1742190187888,57.35348658,128.66,128.65,0.063]
[1742190192422,57.21132501,128.66,128.65,0.063]
[1742190195399,46.59421043,128.66,128.65,0.063]
[1742190195636,57.21132501,128.66,128.65,0.063]
[1742190199195,20.03,128.66,128.65,0.063]
[1742190202407,0.03,128.66,128.65,0.063]
[1742190202715,0.03,128.66,128.65,10.68011458]
[1742190203707,0.03,128.66,128.65,18.45311458]
[1742190211730,0.03,128.66,128.65,26.58411458]
[1742190213324,0.03,128.66,128.65,107.38411458]
[1742190237544,6.5982,128.75,128.65,145.75058658]
[1742190237853,6.5982,128.75,128.71,10.61711458]
[1742190238024,6.5982,128.75,128.73,10.61711458]
[1742190238025,0.03,128.75,128.73,10.61711458]
[1742190238336,0.03,128.75,128.74,10.61711458]
[1742190243642,0.03,128.75,128.73,10.61711458]
[1742190243843,0.03,128.75,128.74,10.61711458]
[1742190244051,0.03,128.75,128.73,10.61711458]
[1742190244422,0.03,128.75,128.71,87.4]
[1742190244622,10.64711458,128.75,128.71,80.8]
[1742190244825,12.14181458,128.74,128.71,6.6]
[1742190245026,30.61711458,128.73,128.71,6.6]
[1742190245947,7.7688,128.72,128.71,6.6]
[1742190248553,18.38591458,128.72,128.69,6.6]
[1742190249254,10.61711458,128.71,128.69,6.6]
[1742190250251,7.77,128.7,128.67,80.8]
[1742190250441,7.77,128.7,128.67,6.6]
[1742190250639,7.77,128.7,128.67,17.21711458]
[1742190251151,18.38671458,128.71,128.67,17.21711458]
[1742190252466,18.38591458,128.72,128.67,17.21711458]
[1742190258362,7.7688,128.72,128.67,17.21711458]
[1742190259463,7.7688,128.72,128.67,24.98861458]
[1742190259671,18.38591458,128.72,128.67,24.98861458]
[1742190260170,52.43644886,128.73,128.69,10.61711458]
[1742190260870,52.43644886,128.73,128.69,18.38761458]
[1742190261254,52.43644886,128.73,128.69,10.61711458]
[1742190261569,52.43644886,128.73,128.68,18.38801458]
[1742190262367,63.05356344,128.73,128.68,18.38801458]
[1742190262562,0.03,128.72,128.68,18.38801458]
[1742190270662,26.59071043,128.72,128.67,6.6]
[1742190270869,37.20782501,128.72,128.67,17.21711458]
[1742190272081,0.03,128.72,128.67,24.98881458]
[1742190272382,0.03,128.72,128.68,10.61711458]
[1742190273683,0.03,128.72,128.68,18.38821458]
[1742190281079,0.03,128.72,128.67,24.98861458]
[1742190281284,10.64711458,128.72,128.67,24.98861458]
[1742190281578,10.61711458,128.71,128.67,6.6]
[1742190281776,10.64711458,128.72,128.67,6.6]
[1742190282971,10.61711458,128.71,128.67,6.6]
[1742190283174,10.61711458,128.7,128.67,6.6]
[1742190283561,12.17281458,128.7,128.67,6.6]
[1742190284679,1.5557,128.7,128.67,6.6]
[1742190285767,12.17281458,128.7,128.67,6.6]